[Event "35th Roquetas Festival 2024"]
[Site "Roquetas de Mar"]
[Date "2024.01.02"]
[Round "1.23"]
[White "Habans Aguerrea, Javier"]
[Black "Villar Piriz, Adrian"]
[Result "1-0"]
[ECO "A10"]
[WhiteElo "2368"]
[BlackElo "1962"]
[Annotator "RC"]
[PlyCount "61"]
[EventDate "2024.01.02"]
[EventType "swiss"]
[EventCountry "ESP"]
[SourceTitle "playchess.com"]
[Source "ChessBase"]
[SourceQuality "1"]
[TimeControl "5400+30"]

1. c4 {[%emt 0:00:03]} b6 {[%emt 0:00:12]} 2. Nf3 {[%emt 0:00:32]} Bb7 {[%emt 0:00:08]} 3. g3 {[%emt 0:00:08]} Nf6 {[%emt 0:00:24]} 4. Bg2 {[%emt 0:00:11]} e6 {[%emt 0:00:12]} 5. O-O {[%emt 0:00:19]} Be7 {[%emt 0:00:31]} 6. d4 {[%emt 0:00:31]} d5 {[%emt 0:00:14]} 7. Nc3 {[%emt 0:04:39]} O-O {[%emt 0:00:53]} 8. Ne5 {[%emt 0:00:12]} Nbd7 {[%emt 0:01:07]} 9. Qa4 {[%emt 0:00:15]} c5 {[%emt 0:08:12]} 10. Nxd7 {[%emt 0:04:47]} Nxd7 {[%emt 0:00:19]} 11. cxd5 {[%emt 0:00:30]} cxd4 {[%emt 0:02:04]} 12. Qxd4 {[%emt 0:01:47]} Bf6 {[%emt 0:00:10]} 13. Qe3 {[%emt 0:11:52]} exd5 {[%emt 0:03:12]} 14. Nxd5 {[%emt 0:05:56]} Bxd5 {[%emt 0:00:38]} 15. Bxd5 {[%emt 0:00:09]} Re8 {[%emt 0:00:29]} 16. Qa3 {[%emt 0:03:05]} Rc8 {[%emt 0:02:32]} 17. Be3 {[%emt 0:02:35]} Nc5 {[%emt 0:03:07]} 18. Rfd1 {[%emt 0:02:10]} Qe7 {[%emt 0:00:06]} 19. Rac1 {[%emt 0:00:52]} a5 {[%emt 0:06:37]} 20. Rc2 {[%emt 0:10:26]} Qe5 {[%emt 0:03:25]} 21. Rcd2 {[%emt 0:02:54]} Be7 {[%emt 0:01:14]} 22. Bf4 {[%emt 0:01:38]} Qf6 {[%emt 0:00:06]} 23. Qf3 {[%emt 0:00:53]} Na4 {[%emt 0:00:18]} 24. Qb3 {[%emt 0:04:55]} Nc5 {[%emt 0:01:42]} 25. Qb5 {[%emt 0:00:32]} h5 {[%emt 0:02:24]} 26. Bc7 {[%emt 0:04:37]} Rf8 {[%emt 0:01:10]} 27. Qxb6 {[%emt 0:00:32]} Na4 {[%emt 0:00:30]} 28. Qxa5 {[%emt 0:02:44]} Nxb2 {[%emt 0:00:13]} 29. Be5 {[%emt 0:01:14]} Rc5 {[%emt 0:00:39]} 30. Bxf6 {[%emt 0:00:08]} Rxa5 {[%emt 0:00:18]} 31. Bxb2 {[%emt 0:00:26]} 1-0

[Event "35th Roquetas Festival 2024"]
[Site "Roquetas de Mar"]
[Date "2024.01.02"]
[Round "1.24"]
[White "Brylski, Pawel"]
[Black "Garcia Fernandez, Victor"]
[Result "1-0"]
[ECO "B59"]
[WhiteElo "1956"]
[BlackElo "2366"]
[Annotator "RC"]
[PlyCount "119"]
[EventDate "2024.01.02"]
[EventType "swiss"]
[EventCountry "ESP"]
[SourceTitle "playchess.com"]
[Source "ChessBase"]
[SourceQuality "1"]
[TimeControl "5400+30"]

1. e4 {[%emt 0:00:16]} c5 {[%emt 0:00:18]} 2. Nf3 {[%emt 0:00:25]} Nc6 {[%emt 0:00:46]} 3. d4 {[%emt 0:01:14]} cxd4 {[%emt 0:00:10]} 4. Nxd4 {[%emt 0:00:04]} Nf6 {[%emt 0:00:09]} 5. Nc3 {[%emt 0:00:06]} d6 {[%emt 0:00:06]} 6. Be2 {[%emt 0:02:48]} e5 {[%emt 0:00:16]} 7. Nb3 {[%emt 0:02:53]} Be7 {[%emt 0:00:27]} 8. Bg5 {[%emt 0:04:04]} O-O {[%emt 0:07:25]} 9. Bxf6 {[%emt 0:03:03]} Bxf6 {[%emt 0:00:11]} 10. Nd5 {[%emt 0:00:19]} Bg5 {[%emt 0:13:56]} 11. h4 {[%emt 0:04:39]} Bh6 {[%emt 0:03:20]} 12. g4 {[%emt 0:03:16]} Bf4 {[%emt 0:01:12]} 13. Nxf4 {[%emt 0:04:54]} exf4 {[%emt 0:00:02]} 14. Qd2 {[%emt 0:00:44]} Qf6 {[%emt 0:01:12]} 15. O-O-O {[%emt 0:01:27]} Rd8 {[%emt 0:01:25]} 16. Rh3 {[%emt 0:23:05]} Ne5 {[%emt 0:02:59]} 17. f3 {[%emt 0:08:39]} a5 {[%emt 0:15:22]} 18. Nd4 {[%emt 0:02:20]} Be6 {[%emt 0:06:17]} 19. Nf5 {[%emt 0:09:55]} Bxa2 {[%emt 0:05:38]} 20. Qxf4 {[%emt 0:06:36]} a4 {[%emt 0:03:56]} 21. Qe3 {[%emt 0:03:07]} a3 {[%emt 0:01:04]} 22. bxa3 {[%emt 0:00:39]} d5 {[%emt 0:14:14]} 23. g5 {[%emt 0:08:31]} Qe6 {[%emt 0:00:20]} 24. Qd4 {[%emt 0:00:25]} g6 {[%emt 0:15:58]} 25. Nh6+ {[%emt 0:00:08]} Kf8 {[%emt 0:00:01]} 26. Rhh1 {[%emt 0:01:26]} Nc6 {[%emt 0:01:04]} 27. Qc5+ {[%emt 0:00:52]} Ne7 {[%emt 0:01:45]} 28. Qd4 {[%emt 0:02:01]} Nc6 {[%emt 0:00:02]} 29. Qc5+ {[%emt 0:00:04]} Ne7 {[%emt 0:00:02]} 30. Qd4 {[%emt 0:00:11]} Ng8 {[%emt 0:02:08]} 31. Qb4+ {[%emt 0:01:29]} Qe7 {[%emt 0:02:09]} 32. Nxg8 {[%emt 0:00:45]} Qxb4 {[%emt 0:00:18]} 33. axb4 {[%emt 0:00:02]} Kxg8 {[%emt 0:00:09]} 34. Kb2 {[%emt 0:00:53]} d4 {[%emt 0:01:14]} 35. Ra1 {[%emt 0:00:50]} Be6 {[%emt 0:00:02]} 36. Rhd1 {[%emt 0:00:45]} Rac8 {[%emt 0:00:22]} 37. Ra5 {[%emt 0:01:30]} Kf8 {[%emt 0:01:23]} 38. f4 {[%emt 0:00:16]} Rc7 {[%emt 0:01:02]} 39. f5 {[%emt 0:00:43]} Bc8 {[%emt 0:00:29]} 40. h5 {[%emt 0:00:17]} Re7 {[%emt 0:00:52]} 41. hxg6 {[%emt 0:00:33]} hxg6 {[%emt 0:00:21]} 42. Bd3 {[%emt 0:00:20]} Rc7 {[%emt 0:00:36]} 43. Rf1 {[%emt 0:01:10]} Kg7 {[%emt 0:00:27]} 44. Rf4 {[%emt 0:00:19]} Rd6 {[%emt 0:00:41]} 45. f6+ {[%emt 0:00:27]} Kf8 {[%emt 0:00:27]} 46. Rd5 {[%emt 0:00:29]} Rcd7 {[%emt 0:00:23]} 47. Rc5 {[%emt 0:00:29]} Rd8 {[%emt 0:00:10]} 48. e5 {[%emt 0:00:13]} Re6 49. Rh4 {[%emt 0:01:49]} Kg8 {[%emt 0:01:18]} 50. Rc7 {[%emt 0:01:41]} Rc6 {[%emt 0:00:29]} 51. Re7 {[%emt 0:01:21]} Re6 {[%emt 0:00:02]} 52. Rc7 {[%emt 0:00:07]} Rc6 {[%emt 0:00:03]} 53. Re7 {[%emt 0:00:03]} Re6 {[%emt 0:00:42]} 54. Bc4 {[%emt 0:00:21]} Rxe7 {[%emt 0:01:24]} 55. fxe7 {[%emt 0:00:03]} Re8 {[%emt 0:00:04]} 56. Rxd4 {[%emt 0:00:09]} Kg7 {[%emt 0:00:58]} 57. Rd8 {[%emt 0:00:09]} Rxe7 {[%emt 0:00:13]} 58. Rxc8 {[%emt 0:00:04]} Rxe5 {[%emt 0:00:03]} 59. Rc7 {[%emt 0:00:13]} Re4 {[%emt 0:00:25]} 60. Kb3 {[%emt 0:00:22]} 1-0

[Event "35th Roquetas Festival 2024"]
[Site "Roquetas de Mar"]
[Date "2024.01.02"]
[Round "1.25"]
[White "Suarez Uriel, Adrian"]
[Black "Kumar, Sanjit S"]
[Result "1-0"]
[ECO "C02"]
[WhiteElo "2365"]
[BlackElo "1952"]
[Annotator "RC"]
[PlyCount "103"]
[EventDate "2024.01.02"]
[EventType "swiss"]
[EventCountry "ESP"]
[SourceTitle "playchess.com"]
[Source "ChessBase"]
[SourceQuality "1"]
[TimeControl "5400+30"]

1. e4 {[%emt 0:00:03]} e6 {[%emt 0:00:05]} 2. d4 {[%emt 0:00:05]} d5 {[%emt 0:00:04]} 3. e5 {[%emt 0:00:06]} c5 {[%emt 0:00:03]} 4. c3 {[%emt 0:00:03]} Nc6 {[%emt 0:00:05]} 5. Nf3 {[%emt 0:00:04]} Qb6 {[%emt 0:00:06]} 6. a3 {[%emt 0:00:05]} c4 {[%emt 0:00:03]} 7. Nbd2 {[%emt 0:00:16]} Na5 {[%emt 0:00:07]} 8. h4 {[%emt 0:00:07]} h6 {[%emt 0:00:02]} 9. h5 {[%emt 0:00:09]} Bd7 {[%emt 0:00:04]} 10. Rb1 {[%emt 0:00:09]} Qc7 {[%emt 0:00:34]} 11. Be2 {[%emt 0:01:31]} Ne7 {[%emt 0:00:05]} 12. O-O {[%emt 0:01:01]} Nc8 {[%emt 0:00:08]} 13. Ne1 {[%emt 0:11:04]} Nb6 {[%emt 0:00:05]} 14. f4 {[%emt 0:00:13]} O-O-O {[%emt 0:09:19]} 15. Nc2 {[%emt 0:02:34]} g6 {[%emt 0:19:40]} 16. Bg4 {[%emt 0:12:52]} Be7 {[%emt 0:03:14]} 17. Nf3 {[%emt 0:01:46]} Rhg8 {[%emt 0:05:24]} 18. Be3 {[%emt 0:06:07]} Rg7 {[%emt 0:10:11]} 19. Bf2 {[%emt 0:04:20]} Rdg8 {[%emt 0:08:08]} 20. Ne3 {[%emt 0:02:58]} Kb8 {[%emt 0:04:30]} 21. Bh4 {[%emt 0:03:38]} Bxh4 {[%emt 0:00:43]} 22. Nxh4 {[%emt 0:00:02]} Nc8 {[%emt 0:04:53]} 23. Bh3 {[%emt 0:16:30]} Qd8 {[%emt 0:01:12]} 24. Nf3 {[%emt 0:01:11]} Ne7 {[%emt 0:00:38]} 25. Ng4 {[%emt 0:04:13]} Nf5 {[%emt 0:00:13]} 26. Qe1 {[%emt 0:00:11]} Rh8 {[%emt 0:03:49]} 27. Nf6 {[%emt 0:00:49]} Ne7 {[%emt 0:05:59]} 28. Nh2 {[%emt 0:02:02]} Ng8 {[%emt 0:02:29]} 29. Nhg4 {[%emt 0:00:09]} Nb3 {[%emt 0:01:10]} 30. Rd1 {[%emt 0:00:42]} Ne7 {[%emt 0:02:37]} 31. Ne3 {[%emt 0:02:46]} Bc8 {[%emt 0:02:16]} 32. Rf3 {[%emt 0:01:23]} Ng8 {[%emt 0:01:51]} 33. Qg3 {[%emt 0:02:07]} Ka8 {[%emt 0:01:02]} 34. f5 {[%emt 0:00:38]} Ne7 {[%emt 0:02:01]} 35. fxg6 {[%emt 0:05:03]} fxg6 {[%emt 0:00:11]} 36. Rf4 {[%emt 0:02:25]} g5 {[%emt 0:02:44]} 37. Rf3 {[%emt 0:00:52]} a6 {[%emt 0:01:11]} 38. Qf2 {[%emt 0:00:15]} b5 {[%emt 0:02:31]} 39. g3 {[%emt 0:01:42]} Ka7 {[%emt 0:00:23]} 40. Rf1 {[%emt 0:01:17]} Rf7 {[%emt 0:00:59]} 41. Qc2 {[%emt 0:01:03]} Rhf8 {[%emt 0:01:03]} 42. R3f2 {[%emt 0:01:11]} Ka8 {[%emt 0:01:35]} 43. Bg2 {[%emt 0:00:52]} Ka7 {[%emt 0:01:19]} 44. Nfg4 {[%emt 0:01:50]} Rxf2 {[%emt 0:01:40]} 45. Rxf2 {[%emt 0:00:06]} Ng8 {[%emt 0:00:07]} 46. Qh7+ {[%emt 0:00:31]} Kb8 {[%emt 0:01:12]} 47. Qg7 {[%emt 0:01:49]} Rxf2 {[%emt 0:00:16]} 48. Kxf2 {[%emt 0:00:11]} Bd7 {[%emt 0:04:46]} 49. Nxh6 {[%emt 0:00:55]} Nxh6 {[%emt 0:00:14]} 50. Qxh6 {[%emt 0:00:04]} Be8 {[%emt 0:00:12]} 51. Qxe6 {[%emt 0:00:45]} Bxh5 {[%emt 0:00:10]} 52. Nxd5 {[%emt 0:00:36]} 1-0

[Event "35th Roquetas Festival 2024"]
[Site "Roquetas de Mar"]
[Date "2024.01.02"]
[Round "1.26"]
[White "Avila Fraire, Ameyalli"]
[Black "Macak, Stefan"]
[Result "0-1"]
[ECO "B40"]
[WhiteElo "1946"]
[BlackElo "2354"]
[Annotator "RC"]
[PlyCount "98"]
[EventDate "2024.01.02"]
[EventType "swiss"]
[EventCountry "ESP"]
[SourceTitle "playchess.com"]
[Source "ChessBase"]
[SourceQuality "1"]
[TimeControl "5400+30"]

1. e4 {[%emt 0:00:04]} c5 {[%emt 0:05:17]} 2. Nf3 {[%emt 0:00:10]} e6 {[%emt 0:00:21]} 3. g3 {[%emt 0:00:18]} Nc6 {[%emt 0:00:31]} 4. Bg2 {[%emt 0:00:17]} Nf6 {[%emt 0:01:56]} 5. Qe2 {[%emt 0:00:14]} e5 {[%emt 0:01:49]} 6. Nc3 {[%emt 0:00:36]} d6 {[%emt 0:01:50]} 7. Nd5 {[%emt 0:02:08]} g6 {[%emt 0:01:12]} 8. c3 {[%emt 0:00:41]} Bg7 {[%emt 0:00:24]} 9. O-O {[%emt 0:00:49]} O-O {[%emt 0:00:09]} 10. Ne1 {[%emt 0:07:46]} Nxd5 {[%emt 0:09:24]} 11. exd5 {[%emt 0:00:16]} Ne7 {[%emt 0:00:34]} 12. d3 {[%emt 0:02:51]} Nf5 {[%emt 0:06:33]} 13. Nc2 {[%emt 0:00:48]} Rb8 {[%emt 0:02:20]} 14. Ne3 {[%emt 0:01:05]} b5 {[%emt 0:01:32]} 15. Nxf5 {[%emt 0:10:28]} Bxf5 {[%emt 0:00:12]} 16. Be3 {[%emt 0:01:02]} b4 {[%emt 0:10:13]} 17. c4 {[%emt 0:03:39]} Qc7 {[%emt 0:01:59]} 18. Rad1 {[%emt 0:05:26]} Rfe8 {[%emt 0:05:26]} 19. h3 {[%emt 0:14:15]} Qa5 {[%emt 0:08:03]} 20. b3 {[%emt 0:13:08]} Qb6 {[%emt 0:00:26]} 21. Bc1 {[%emt 0:02:52]} a5 {[%emt 0:00:58]} 22. Bb2 {[%emt 0:01:25]} Ra8 {[%emt 0:06:17]} 23. Rfe1 {[%emt 0:02:42]} Bd7 {[%emt 0:03:26]} 24. Qd2 {[%emt 0:03:19]} a4 {[%emt 0:01:22]} 25. Kh2 {[%emt 0:11:26]} axb3 {[%emt 0:00:50]} 26. axb3 {[%emt 0:00:08]} Ra2 {[%emt 0:00:42]} 27. Ra1 {[%emt 0:00:20]} Rea8 {[%emt 0:00:28]} 28. Rxa2 {[%emt 0:01:40]} Rxa2 {[%emt 0:00:02]} 29. Ra1 {[%emt 0:03:03]} Rxa1 {[%emt 0:17:56]} 30. Bxa1 {[%emt 0:00:07]} Qa5 {[%emt 0:00:16]} 31. Qb2 {[%emt 0:00:20]} Bh6 {[%emt 0:05:06]} 32. f4 {[%emt 0:08:48]} f6 {[%emt 0:00:07]} 33. Be4 {[%emt 0:02:38]} Kg7 {[%emt 0:01:07]} 34. Kg2 {[%emt 0:01:03]} Qa3 {[%emt 0:00:23]} 35. fxe5 {[%emt 0:00:56]} fxe5 {[%emt 0:01:10]} 36. g4 {[%emt 0:00:55]} Be3 {[%emt 0:03:59]} 37. Qe2 {[%emt 0:00:24]} Bf4 {[%emt 0:01:20]} 38. Qb2 {[%emt 0:00:11]} Kf6 {[%emt 0:00:34]} 39. Kf3 {[%emt 0:00:46]} Kg5 {[%emt 0:01:03]} 40. Qb1 {[%emt 0:00:37]} Qc1 {[%emt 0:01:10]} 41. Qxc1 {[%emt 0:00:28]} Bxc1 {[%emt 0:00:01]} 42. Kg3 {[%emt 0:00:12]} Bf4+ {[%emt 0:00:17]} 43. Kg2 {[%emt 0:00:33]} h5 {[%emt 0:00:30]} 44. gxh5 {[%emt 0:01:02]} gxh5 {[%emt 0:00:18]} 45. Bb2 {[%emt 0:00:20]} Kh4 {[%emt 0:00:17]} 46. Bg6 {[%emt 0:00:24]} Bxh3+ {[%emt 0:00:08]} 47. Kf3 {[%emt 0:00:14]} Bg4+ {[%emt 0:00:33]} 48. Ke4 {[%emt 0:00:58]} Kg5 {[%emt 0:00:22]} 49. Be8 {[%emt 0:00:27]} h4 0-1

[Event "35th Roquetas Festival 2024"]
[Site "Roquetas de Mar"]
[Date "2024.01.03"]
[Round "2.1"]
[White "Korneev Leskova, Svyatoslav"]
[Black "Grigoryan, Karen H."]
[Result "0-1"]
[ECO "A21"]
[WhiteElo "2248"]
[BlackElo "2643"]
[Annotator "TA"]
[PlyCount "129"]
[EventDate "2024.01.02"]
[EventType "swiss"]
[EventCountry "ESP"]
[SourceTitle "playchess.com"]
[Source "ChessBase"]
[SourceQuality "1"]
[TimeControl "5400+30"]

{[%evp 11,129,0,1,0,-5,-12,41,-26,-21,-64,0,0,0,0,0,0,0,-118,-75,-67,-56,-48,-9,-18,-31,-91,-41,-118,-49,-120,-56,-150,-158,-158,-125,-150,-98,-101,-86,-106,-94,-93,-86,-76,-73,-92,-53,-54,-39,-54,0,-52,0,-161,-150,-459,-495,-441,-438,-449,0,0,0,0,302,285,819,717,549,325,314,51,49,0,0,0,0,-106,-115,-108,-108,-108,-108,-876,-853,-12830,-12827,-12841,-12841,-12841,-12842,-12842,-12843,-12843,-12843,-12844,-12844,-12846,-12842,-12843,-12841,-12845,-12843,-12843,-12844,-12844,-12844,-12845,-12844,-12846,-12847,-12850,-12845,-12847,-12847,-12847,-12847,-12848,-12848,-12849]} 1. c4 {[%emt 0:00:03]} e5 {[%emt 0:06:40]} 2. Nc3 {[%emt 0:00:25]} Bb4 {[%emt 0:00:14]} 3. g3 {[%emt 0:00:25]} Bxc3 {[%emt 0:00:09]} 4. bxc3 {[%emt 0:00:10]} d6 {[%emt 0:00:17]} 5. Bg2 {[%emt 0:00:24]} f5 {[%emt 0:00:11]} 6. d3 {[%emt 0:01:26]} Nf6 {[%emt 0:00:19]} 7. Nh3 {[%emt 0:01:43] A21: English Opening: 1...e5 2 Nc3.} O-O {[%emt 0:00:21]} 8. f4 {[%emt 0:01:27] [#]} Qe7 $146 {[%emt 0:05:47]} (8... Nbd7 $11) ({Predecessor:} 8... e4 9. O-O Na6 10. Nf2 Nc5 11. Be3 Re8 12. Bxc5 dxc5 13. Qc2 Qe7 14. Rab1 Rb8 15. dxe4 fxe4 16. Nd1 Qf7 17. Ne3 Be6 18. Qa4 {½-½ Plachetka,J (2440)-Dizdar,G (2525) SVK-CRO Piestany 1996}) 9. O-O {[%emt 0:18:17]} (9. fxe5 $14 Qxe5 10. Qc2) 9... e4 $11 {[%emt 0:00:49]} 10. Qb3 {[%emt 0:03:18]} c5 {[%emt 0:00:16]} (10... Nc6 $15) 11. a4 {[%emt 0:01:43]} Nc6 {[%emt 0:00:13]} 12. a5 {[%emt 0:02:59]} Rb8 {[%emt 0:00:10]} 13. Nf2 {[%emt 0:01:07]} Re8 {[%emt 0:00:24]} 14. Be3 {[%emt 0:09:56]} (14. Nd1 $11) 14... Qc7 {[%emt 0:05:39]} 15. dxe4 {[%emt 0:15:04][%cal Oe4e5]} fxe4 {[%emt 0:00:33]} 16. Qa2 {[%emt 0:01:10]} b6 {[%emt 0:00:28]} 17. axb6 {[%emt 0:04:46]} axb6 {[%emt 0:00:08]} 18. Qc2 {[%emt 0:03:46]} (18. f5 $15) 18... Qe7 {[%emt 0:01:22]} (18... Na5 $17 19. Nxe4 Rxe4 20. Bxe4 Qe7 21. Bxc5 dxc5 22. Bd5+ Be6) 19. Rfb1 {[%emt 0:00:42]} (19. f5 $1 $15) 19... Kh8 {[%emt 0:00:54]} (19... Bd7 $17 20. Bc1 Na5) 20. Ra4 {[%emt 0:05:04]} (20. Bc1 $15) 20... Qc7 {[%emt 0:00:48]} (20... Be6 $17 21. Bh3 (21. Bxe4 $2 Bd7 $19) (21. Nxe4 $2 Bf5 $19) 21... Bxc4) 21. Bh3 {[%emt 0:04:32]} (21. Bxe4 $2 Nxe4 22. g4 (22. Nxe4 $2 Bf5 $19) 22... Nxf2 23. Bxf2 Bxg4 $19) (21. Nxe4 $2 Bf5 22. Bf2 Bxe4 $19) (21. Nd1 $1 $15) 21... Bxh3 $17 {[%emt 0:00:26]} 22. Nxh3 {[%emt 0:00:04]} Na5 $1 {[%emt 0:00:20]} 23. Nf2 {[%emt 0:01:44]} Qf7 {[%emt 0:02:55]} ({Better is} 23... Qc6 {[%cal Oa5c4]} 24. g4 Ra8) 24. Qa2 {[%emt 0:01:26]} Qe6 {[%emt 0:00:11]} 25. Rd1 {[%emt 0:06:11]} Red8 {[%emt 0:01:24]} 26. h3 {[%emt 0:04:41]} h5 {[%emt 0:00:08]} 27. Kh2 {[%emt 0:00:55]} Kg8 {[%emt 0:00:28]} 28. Rd2 {[%emt 0:03:34]} Kf7 {[%emt 0:00:24]} 29. Rd1 {[%emt 0:01:35]} g6 {[%emt 0:00:10]} 30. Rd2 {[%emt 0:00:13]} Ng8 {[%emt 0:00:15]} (30... Re8 $15) 31. Rb2 {[%emt 0:04:52]} (31. Nd1 $1 $11) 31... Nh6 {[%emt 0:00:29]} (31... Re8 $15) 32. f5 $2 {[%emt 0:00:47]} Nxf5 $19 {[%emt 0:00:11]} (32... Qxf5 33. Qb1 Nc6 34. Qxe4 Qxe4 35. Nxe4 $14) 33. Bf4 {[%emt 0:00:45] [#]} (33. Bg5 $17 {nothing else works.}) 33... g5 $1 {[%emt 0:04:37][%mdl 512]} 34. Bxg5 {[%emt 0:00:18]} Rg8 {[%emt 0:00:22]} 35. Bf4 {[%emt 0:01:52] [#]} Nxg3 $2 {[%emt 0:01:26]} 36. Qb1 $1 $11 {[%emt 0:00:34] Rxa5 would be deadly.} (36. Bxg3 $2 Rxg3 37. Kxg3 Rg8+ $19) 36... e3 {[%emt 0:04:01]} 37. Nd3 {[%emt 0:00:29]} Nxc4 $2 {[%emt 0:15:38][%mdl 8192]} (37... Qg6 $1 $11 38. Rxa5 (38. Bxe3 $2 Nf5 $19) 38... bxa5 39. Rxb8 Rxb8 40. Qxb8 Nxe2 41. Qc7+ (41. Qxd6 $2 Qg1#) 41... Ke8 42. Qc8+ (42. Qxd6 $2 Qg1#) 42... Ke7 43. Qc7+ Ke8 44. Qc8+ (44. Qxd6 $2 Qg1#) 44... Ke7 45. Qc7+ Ke8) 38. Rxc4 $18 {[%emt 0:00:31]} (38. Bxg3 $6 Qg6 39. Qf1+ (39. Rxc4 $2 Qxg3+ 40. Kh1 Qxh3#) 39... Ke8 40. Rxc4 Qxg3+ 41. Kh1 Rf8) 38... Nxe2 $2 {[%emt 0:00:06]} (38... Qxc4 39. Bxg3 (39. Bxd6 Qe4 $11) 39... Rxg3 40. Kxg3 Qe4) 39. Rxe2 {[%emt 0:00:31]} Qxc4 {[%emt 0:00:06]} 40. Bxd6 {[%emt 0:00:28] Intending Ne5+ and mate.} Rbe8 {[%emt 0:00:27]} 41. Bf4 $2 {[%emt 0:00:32]} (41. Qf1+ $18 Ke6 42. Ne5 (42. Rxe3+ $2 {too greedy.} Kxd6 43. Rf3 Qe4 $19)) 41... Rg6 $14 {[%emt 0:02:59]} (41... Qxc3 $2 42. Bxe3 Rg6 43. Rc2 $16) 42. Rxe3 {[%emt 0:00:29]} (42. Qc2 $1 $14 Kg8 43. Bxe3 (43. Rxe3 Rxe3 44. Bxe3 Qe4 $11)) 42... Rxe3 $11 {[%emt 0:00:09]} (42... Qxc3 $2 43. Ne5+ Rxe5 44. Rxc3 $18) 43. Bxe3 {[%emt 0:00:06] Threatens to win with Ne5+.} Qe4 $36 {[%emt 0:00:35][%csl Gg6][%cal Re4g2][%mdl 2048] Wards off Ne5+. Black is pushing.} 44. Qa2+ {[%emt 0:00:48] [#]} (44. Qf1+ $11 {was the only way to keep the balance.} Rf6 45. Qe2) 44... Re6 $1 $17 {[%emt 0:00:20] Chess con chili. Black is more active. White is on the road to losing.} 45. Nf4 {[%emt 0:00:37][%mdl 64] Pin} Qxe3 {[%emt 0:00:06]} 46. Nxe6 {[%emt 0:00:22]} Qxe6 {[%emt 0:00:05][%mdl 4096] Endgame KQ-KQ} 47. Qa7+ {[%emt 0:00:18][%mdl 8192]} (47. Qf2+ $17 Ke7 48. Qh4+ Qf6 49. Qxh5) 47... Kf6 $19 {[%emt 0:00:13] Black is clearly winning.} 48. Qa3 {[%emt 0:00:44]} h4 {[%emt 0:00:10]} 49. Qb2 {[%emt 0:00:33]} Qe5+ {[%emt 0:00:05]} 50. Kh1 {[%emt 0:00:28]} Qe1+ {[%emt 0:00:05]} 51. Kh2 {[%emt 0:00:12]} Qg3+ {[%emt 0:00:05][%mdl 64] Deflection} 52. Kh1 {[%emt 0:00:04]} Qxh3+ {[%emt 0:00:05]} 53. Kg1 {[%emt 0:00:02]} Qe3+ {[%emt 0:00:10]} 54. Kh2 {[%emt 0:00:31]} c4 {[%emt 0:00:09]} 55. Qa3 {[%emt 0:00:30]} Ke6 {[%emt 0:00:34]} 56. Qb2 {[%emt 0:01:30]} Qe5+ {[%emt 0:00:33]} 57. Kg2 {[%emt 0:00:43]} b5 {[%emt 0:00:08]} 58. Qa1 {[%emt 0:00:27]} Kf5 {[%emt 0:00:48]} 59. Qa6 {[%emt 0:00:35]} Kf4 {[%emt 0:00:21]} 60. Qc8 {[%emt 0:00:28]} Ke3 {[%emt 0:00:57]} 61. Qa6 {[%emt 0:00:33]} Kd3 {[%emt 0:01:10]} 62. Qa5 {[%emt 0:00:26]} Qg3+ {[%emt 0:00:26]} 63. Kh1 {[%emt 0:00:19]} Qf3+ {[%emt 0:00:05]} ({Stronger than} 63... h3 64. Qd8+ Kxc3 65. Qa5+ b4 66. Qxb4+ Kd3 67. Qxc4+ Kxc4 $11) 64. Kg1 {[%emt 0:00:40]} h3 {[%emt 0:00:08][%csl Gh3][%cal Rf3g2]} 65. Qd8+ {[%emt 0:00:16] Artfully played by Grigoryan.   Weighted Error Value: White=0.66/Black=0.31} 0-1

[Event "35th Roquetas Festival 2024"]
[Site "Roquetas de Mar"]
[Date "2024.01.03"]
[Round "2.2"]
[White "Peng, Li Min"]
[Black "Domene Mulyukov, Alexander"]
[Result "1-0"]
[ECO "B40"]
[WhiteElo "2575"]
[BlackElo "2266"]
[Annotator "TA"]
[PlyCount "53"]
[EventDate "2024.01.02"]
[EventType "swiss"]
[EventCountry "ESP"]
[SourceTitle "playchess.com"]
[Source "ChessBase"]
[SourceQuality "1"]
[TimeControl "5400+30"]

{[%evp 9,53,-21,-17,-10,0,-4,-9,-28,-24,-77,-71,-70,66,75,74,77,51,45,46,46,72,68,99,97,61,62,141,142,260,260,241,253,235,267,254,283,752,756,800,783,1016,1000,29994,29995,29995,29996]} 1. e4 {[%emt 0:00:03]} c5 {[%emt 0:00:56]} 2. Nf3 {[%emt 0:00:22]} e6 {[%emt 0:00:06]} 3. c3 {[%emt 0:02:49]} d5 {[%emt 0:00:08]} 4. e5 {[%emt 0:00:12]} d4 {[%emt 0:00:12]} 5. d3 {[%emt 0:00:13]} Nc6 {[%emt 0:00:13]} 6. g3 {[%emt 0:00:45] B40: Sicilian: 2...e6, Unusual lines.} dxc3 {[%emt 0:00:14]} 7. bxc3 {[%emt 0:01:32]} Nge7 {[%emt 0:00:48] [#]} 8. Na3 $146 {[%emt 0:16:01][%cal Bb1a3,Ba3c4,Bc4e3][%mdl 32] The position is equal.} ({Predecessor:} 8. Bg2 Nf5 9. O-O Be7 10. a4 O-O 11. Na3 Qd7 12. Nc4 b6 13. g4 Nh6 14. Bxh6 gxh6 {1-0 Giri,A (2761)-Kamsky,G (2661) Chess.com Rapid Wk13 Swiss 2022 (6)}) 8... Ng6 {[%emt 0:22:44]} 9. Qe2 {[%emt 0:00:05]} (9. Bg2 $11) 9... Qa5 $17 {[%emt 0:00:57]} 10. Bb2 {[%emt 0:06:46]} Nd4 {[%emt 0:03:46]} (10... b5 $1 $15 11. Nc2 Bb7) 11. Nxd4 $1 $14 {[%emt 0:17:24]} cxd4 {[%emt 0:00:16]} 12. Nc4 {[%emt 0:00:03]} Qd5 {[%emt 0:01:52]} 13. Rg1 $36 {[%emt 0:00:04][%mdl 2048] White is pushing.} Rb8 {[%emt 0:09:16]} 14. Bg2 {[%emt 0:00:28]} Qd8 {[%emt 0:00:31]} 15. cxd4 {[%emt 0:00:32] White is more active.} b5 {[%emt 0:05:05] [#]} 16. Ne3 {[%emt 0:01:04]} ({Don't play} 16. Bc6+ Bd7 17. Bxd7+ Qxd7 $14) 16... Bb4+ {[%emt 0:06:05]} 17. Kf1 {[%emt 0:00:04]} Ne7 {[%emt 0:00:09] [#] Dodges d5} ({Better is} 17... O-O $1 $14) 18. Qg4 $1 $16 {[%emt 0:06:33]} Qa5 {[%emt 0:11:25]} (18... O-O $16) 19. Qxg7 $18 {[%emt 0:05:52]} Rg8 {[%emt 0:00:15] [#]} 20. Bc6+ $1 {[%emt 0:01:00][%mdl 576] Deflection} Bd7 {[%emt 0:22:59]} 21. Bxd7+ {[%emt 0:00:05]} ({And not} 21. Qxh7 Bxc6 22. d5 Bxd5 23. Nxd5 exd5 $17) 21... Kxd7 {[%emt 0:00:06]} 22. Qxf7 {[%emt 0:00:20] d5 is the strong threat.} Bc3 $2 {[%emt 0:09:27] [#]} (22... Rbf8 23. Qxh7 Bd2) 23. d5 $1 {[%emt 0:00:48][%cal Bd4d5,Bd5d6,Bd6d7][%mdl 32]} Bxb2 {[%emt 0:01:58]} (23... Rg6 24. d6) 24. Qxe6+ {[%emt 0:00:06]} Kd8 {[%emt 0:02:30] [#]} 25. d6 $1 {[%emt 0:00:50]} Bxa1 {[%emt 0:00:30]} (25... Rg7 26. dxe7+) 26. Qxe7+ {[%emt 0:00:05]} Kc8 {[%emt 0:00:18] Black is weak on the light squares} 27. d7+ {[%emt 0:00:05] A cool game by Peng.   Weighted Error Value: White=0.03 (flawless) /Black=0.63} 1-0